Cogmind - Beta 11.1 @@@ ROGUE MODE // 2022.04.23 @ 17:47:04 // Winter2019/RPGLIKE Player: Kiks Result: Destroyed by H-61 Shepherd with Heavy Assault Cannon Performance ------------- Evolutions (2) 1000 Regions Visited (6) 1200 Robots Destroyed (83) 415 Value Destroyed (2001) 2001 Prototype IDs (1) 20 Alien Tech Used (0) 0 Bonus (257) 257 TOTAL SCORE: 4893 Bonus ------- High Alert Combat Kills 257 Cogmind --------- Core Integrity 0/600 Matter 280/300 Energy 160/160 System Corruption 0% Temperature Cool (0) Movement Flying (34) Location -8/Materials Parts ------- > --- POWER (1) -------- Light Nuclear Core > --- PROPULSION (4) --- Improved Flight Unit Improved Flight Unit Improved Flight Unit > --- UTILITY (3) ------ Heat Sink Melee Analysis Suite System Shield > --- WEAPON (3) ------- Great Maul Great Maul Great Maul > --- INVENTORY (3) ---- Light EM Pulse Cannon Heavy Missile Launcher Peak State ------------ > --- POWER ------------ Light Nuclear Core > --- PROPULSION ------- VTOL Module Improved Flight Unit Improved Flight Unit Improved Flight Unit > --- UTILITY ---------- Heat Sink Melee Analysis Suite System Shield > --- WEAPON ----------- Great Maul Great Maul Great Maul > --- INVENTORY -------- Light EM Pulse Cannon Heavy Missile Launcher [Rating: 30] Favorites ----------- Power Light Ion Engine Engine Light Ion Engine Power Core Light Nuclear Core Propulsion Improved Flight Unit Leg Aluminum Leg Flight Unit Improved Flight Unit Utility Signal Interpreter Device Heat Sink Processor Signal Interpreter Hackware System Shield Weapon Mace Energy Gun EM Pulse Gun Energy Cannon Beam Cannon Ballistic Gun Light Assault Rifle Launcher Rocket Launcher Impact Weapon Mace Build | -11 -10 -9 -9 -9 -8 -8 ------- Run | Scr Mat Mat Min Exi Min Mat Slots Evolved 7 | 3 . 1 . . . 3 Power . | . . . . . . . Propulsion 3 | 1 . 1 . . . 1 Utility 2 | 1 . . . . . 1 Weapon 2 | 1 . . . . . 1 Parts Attached 33 | 6 6 11 . . . 10 Power 4 | 1 . 2 . . . 1 Engine 3 | 1 . 2 . . . . Core 1 | . . . . . . 1 Reactor . | . . . . . . . Propulsion 13 | 2 . 7 . . . 4 Treads . | . . . . . . . Leg 2 | 2 . . . . . . Wheel . | . . . . . . . Hover . | . . . . . . . Flight 11 | . . 7 . . . 4 Utility 5 | . 3 . . . . 2 Device 1 | . 1 . . . . . Storage . | . . . . . . . Processor 3 | . 2 . . . . 1 Hackware 1 | . . . . . . 1 Protection . | . . . . . . . Artifact . | . . . . . . . Weapon 11 | 3 3 2 . . . 3 Energy Gun 2 | 2 . . . . . . Energy Cannon 1 | . 1 . . . . . Ballistic Gun 1 | 1 . . . . . . Ballistic Cannon . | . . . . . . . Launcher 1 | . . 1 . . . . Special Weapon . | . . . . . . . Impact Weapon 6 | . 2 1 . . . 3 Slashing Weapon . | . . . . . . . Piercing Weapon . | . . . . . . . Special Melee Weapon . | . . . . . . . Unidentified Prototypes 1 | . . 1 . . . . Parts Lost 2 | . . 1 . . . 1 Power 1 | . . 1 . . . . Propulsion 1 | . . . . . . 1 Utility . | . . . . . . . Weapon . | . . . . . . . Highest Loss Streak 1 | . . 1 . . . 1 To Critical Strikes . | . . . . . . . Average Slot Usage (%) 96 | . 96 96 100 100 100 90 Engine 11 | . 14 9 12 12 12 4 Leg 12 | . 28 3 . . . . Flight 19 | . . 32 37 37 37 28 Device 10 | . 7 12 12 12 12 10 Processor 14 | . 17 12 12 12 12 10 Energy Gun 6 | . 15 . . . . . Energy Cannon 2 | . 6 . . . . . Impact Weapon 17 | . 6 25 25 25 25 26 Naked Turns . | . . . . . . . Heaviest Build 18 | 7 9 12 10 10 10 18 Greatest Support 24 | 20 20 20 14 14 14 24 Greatest Overweight (x) 1 | . . . . . . 1 Average Overweight (x) . | . . . . . . . Largest Inventory Capacity 3 | 3 3 3 3 3 3 3 Average Capacity 2 | 2 3 3 3 3 3 3 Most Carried 3 | . 3 3 3 3 3 3 Average Carried 2 | . 1 2 3 3 3 2 Final Capacity 3 | 3 3 3 3 3 3 3 Final Carried 3 | . 3 3 3 3 3 2 Class Distribution -------------------- 51% | Sprinter 48% | Mutant Dominant Class ---------------- Mutant | -10/Materials Sprinter | -9/Materials Sprinter | -9/Mines Sprinter | -9/Exiles Sprinter | -8/Mines Sprinter | -8/Materials Resources | -11 -10 -9 -9 -9 -8 -8 ----------- Run | Scr Mat Mat Min Exi Min Mat Matter Collected 528 | 260 60 133 . . . 75 Remotely . | . . . . . . . Salvage Created 2286 | . 571 1198 25 . 251 241 Parts 113 | . 38 58 3 . 7 7 Haulers Intercepted 7 | . 2 5 . . . . Recyclers Shooed 1 | . 1 . . . . . Parts Field Recycled . | . . . . . . . Retrieved Matter . | . . . . . . . Parts Self-Destructed . | . . . . . . . Prevented . | . . . . . . . Kills | -11 -10 -9 -9 -9 -8 -8 ------- Run | Scr Mat Mat Min Exi Min Mat Combat Hostiles Destroyed 58 | . 8 35 3 . 6 6 Melee 27 | . . 17 3 . 2 5 Guns 6 | . 6 . . . . . Cannons 2 | . 2 . . . . . AOE 3 | . . 3 . . . . Classes Destroyed 12 | . 5 3 . . 2 2 Worker 5 | . 1 4 . . . . Builder 1 | . . 1 . . . . Tunneler 1 | . . . . . 1 . Hauler 7 | . 2 5 . . . . Operator 3 | . 1 2 . . . . Watcher 8 | . 3 5 . . . . Swarmer 17 | . . 12 3 . 2 . Cutter 2 | . . . . . . 2 Grunt 26 | . 8 13 . . 3 2 Brawler 1 | . . . . . . 1 Sentry 11 | . . 10 . . . 1 Hunter 1 | . . . . . 1 . Best Kill Streak 17 | . 2 17 3 . 3 3 Combat Bots Only 6 | . 2 6 3 . 3 3 Max Kills in Single Turn 4 | . 2 4 1 . 1 1 Gunslinging 1 | . 1 . . . . . Exploded 3 | . . 3 . . . . Melee 1 | . . 1 1 . 1 1 Uniques/NPCs Destroyed . | . . . . . . . Combat | -11 -10 -9 -9 -9 -8 -8 -------- Run | Scr Mat Mat Min Exi Min Mat Damage Taken 2838 | . 491 1559 49 . 343 396 Core 2381 | . 398 1316 41 . 284 342 Absorbed by Shields . | . . . . . . . Redirected to Core 1518 | . 307 774 25 . 208 204 Core Remaining (%) 83 | 100 95 . . . 56 . Volleys Fired 51 | . 49 2 . . . . Largest 2 | . 2 1 . . . . Hottest 100 | . 100 33 . . . . Shots Fired 100 | . 98 2 . . . . Gun 72 | . 72 . . . . . Cannon 26 | . 26 . . . . . Launcher 2 | . . 2 . . . . Special . | . . . . . . . Kinetic . | . . . . . . . Thermal 26 | . 26 . . . . . Explosive 2 | . . 2 . . . . Electromagnetic 72 | . 72 . . . . . Robot Hit Streak 8 | . 8 . . . . . Robot Miss Streak 4 | . 4 . . . . . Penetration Max . | . . . . . . . Secondary Targets 1 | . 1 . . . . . Max Gunslinging Chain 1 | . 1 . . . . . Shots Hit Robots 206 | . 57 115 4 . 18 12 Core Hits 51 | . 21 22 1 . 3 4 Critical Kills 2 | . . 1 . . . 1 Critical Parts Destroyed 34 | . . 24 . . 6 4 Critical Strikes 38 | . 1 26 . . 6 5 Corrupt 1 | . 1 . . . . . Smash 37 | . . 26 . . 6 5 Melee Attacks 183 | . . 142 4 . 24 13 Impact 183 | . . 142 4 . 24 13 Slashing . | . . . . . . . Piercing . | . . . . . . . Sneak Attacks 13 | . . 11 . . 2 . Combat Hostiles 2 | . . 1 . . 1 . Follow-up Attacks 24 | . . 17 1 . 2 4 Damage Inflicted 6638 | . 1018 4389 111 . 642 478 Guns 689 | . 689 . . . . . Cannons 279 | . 279 . . . . . Explosions 280 | . 47 233 . . . . Melee 5387 | . . 4156 111 . 642 478 Ramming 3 | . 3 . . . . . Kinetic . | . . . . . . . Thermal 326 | . 326 . . . . . Explosive 233 | . . 233 . . . . Electromagnetic 689 | . 689 . . . . . Impact 5387 | . . 4156 111 . 642 478 Slashing . | . . . . . . . Piercing . | . . . . . . . Highest Corruption 2 | . 2 . . . . . Average Corruption 2 | . 2 . . . . . Corruption Purged . | . . . . . . . Corruption Blocked . | . . . . . . . Effects 2 | . 2 . . . . . Matter Fused 1 | . 1 . . . . . Data Loss (minor) 1 | . 1 . . . . . Overload Shots . | . . . . . . . Overflow Damage 1787 | . 5 1368 25 . 214 175 Projectiles 5 | . 5 . . . . . Explosions . | . . . . . . . Melee 1782 | . . 1368 25 . 214 175 Knockbacks 23 | . . 14 . . 7 2 Impact 23 | . . 14 . . 7 2 Kinetic . | . . . . . . . Secondary . | . . . . . . . Self-Inflicted Damage . | . . . . . . . Shots . | . . . . . . . Rammed . | . . . . . . . Targets Rammed 1 | . 1 . . . . . Kicked 1 | . 1 . . . . . Crushed . | . . . . . . . Highest Temperature 285 | . 285 . . . 12 . Average Temperature 82 | . 83 . . . 9 . Received Heat Transfer 1020 | . 294 474 . . 225 27 Effects 1 | . 1 . . . . . Interference 1 | . 1 . . . . . Siege Activations . | . . . . . . . Robots Corrupted . | . . . . . . . Combat Hostiles . | . . . . . . . Parts Fried 58 | . 5 43 1 . 3 6 Impact Corruptions 74 | . . 57 3 . 8 6 Robots Melted . | . . . . . . . Combat Hostiles . | . . . . . . . Parts Melted . | . . . . . . . Heat Transferred 692 | . 692 . . . . . Parts Sabotaged . | . . . . . . . Parts Stolen . | . . . . . . . Parts Stripped . | . . . . . . . Power Chain Reactions 1 | . 1 . . . . . Missiles Intercepted . | . . . . . . . Alert | -11 -10 -9 -9 -9 -8 -8 ------- Run | Scr Mat Mat Min Exi Min Mat Peak Influence 1100 | . 364 1100 455 . 200 248 Initial 370 | . . 80 370 . . 78 Average 341 | . 180 565 444 . 112 164 Maximum Alert Level 4 | . 1 4 2 . 1 1 Low Security (%) 49 | 100 79 10 . . 91 67 Level 1 20 | . 20 23 3 . 8 32 Level 2 16 | . . 33 96 . . . Level 3 14 | . . 31 . . . . Level 4 . | . . . . . . . Level 5 . | . . . . . . . High Security . | . . . . . . . Max Security . | . . . . . . . Squads Dispatched 13 | . 2 9 . . . 2 Investigation 4 | . . 4 . . . . Extermination . | . . . . . . . Reinforcement 7 | . 2 3 . . . 2 Assault 2 | . . 2 . . . . Garrison . | . . . . . . . Intercept . | . . . . . . . Searches Triggered . | . . . . . . . Construction Impeded . | . . . . . . . Haulers Reinforced . | . . . . . . . Active Scanning Responses . | . . . . . . . Cargo Convoy Interrupts . | . . . . . . . Stealth | -11 -10 -9 -9 -9 -8 -8 --------- Run | Scr Mat Mat Min Exi Min Mat Distress Signals 3 | . 1 1 . . . 1 Communications Jammed . | . . . . . . . Distress Signals . | . . . . . . . Times Spotted 93 | . 17 58 3 . 7 8 Peak Tracking Total 10 | . 2 10 3 . 3 5 Tactical Retreats 6 | . 1 3 . . 1 1 Traps | -11 -10 -9 -9 -9 -8 -8 ------- Run | Scr Mat Mat Min Exi Min Mat Traps Triggered 3 | . 1 2 . . . . Indirectly . | . . . . . . . Trap Hack Attempts . | . . . . . . . Triggered . | . . . . . . . Disarmed 1 | . 1 . . . . . Reprogrammed . | . . . . . . . Reused . | . . . . . . . Traps Extracted . | . . . . . . . Installed . | . . . . . . . Triggered 1 | . 1 . . . . . Machines | -11 -10 -9 -9 -9 -8 -8 ---------- Run | Scr Mat Mat Min Exi Min Mat Machines Disabled 1 | . . 1 . . . . Max in Single Turn 1 | . . 1 . . . . Machines Sabotaged . | . . . . . . . Garrisons Compromised . | . . . . . . . Overloaded Fab Kills . | . . . . . . . Hacking | -11 -10 -9 -9 -9 -8 -8 --------- Run | Scr Mat Mat Min Exi Min Mat Machines Accessed 13 | . 4 8 . 1 . . Terminals 11 | . 4 7 . . . . Fabricators . | . . . . . . . Repair Stations . | . . . . . . . Recycling Units 1 | . . 1 . . . . Scanalyzers . | . . . . . . . Garrison Access . | . . . . . . . Total Hacks 61 | . 11 27 . 23 . . Successful 44 | . 7 14 . 23 . . Failed 17 | . 4 13 . . . . Catastrophic 1 | . . 1 . . . . Database Lockouts . | . . . . . . . Manual 31 | . 7 24 . . . . Terminals 37 | . 11 26 . . . . Fabricators . | . . . . . . . Repair Stations . | . . . . . . . Recycling Units 1 | . . 1 . . . . Scanalyzers . | . . . . . . . Garrison Access . | . . . . . . . Terminal Hacks 31 | . 3 5 . 23 . . Record 23 | . . . . 23 . . Level Access Points 1 | . . 1 . . . . Branch Access Points 1 | . . 1 . . . . Alert Level 1 | . . 1 . . . . Unreport Threat 1 | . . 1 . . . . Locate Traps 1 | . 1 . . . . . Disarm Traps 1 | . 1 . . . . . Zone Layout 2 | . 1 1 . . . . Fabricator Hacks . | . . . . . . . Repair Station Hacks . | . . . . . . . Recycling Unit Hacks 1 | . . 1 . . . . Report Inventory 1 | . . 1 . . . . Scanalyzer . | . . . . . . . Garrison Access Hacks . | . . . . . . . Unauthorized Hacks 11 | . 4 7 . . . . Terminals 11 | . 4 7 . . . . Botnet 11 | . 4 7 . . . . Fabricators . | . . . . . . . Repair Stations . | . . . . . . . Recycling Units . | . . . . . . . Scanalyzers . | . . . . . . . Garrison Access . | . . . . . . . Data Cores Recovered . | . . . . . . . Used . | . . . . . . . Hacking Detections 11 | . 4 7 . . . . Full Trace Events 3 | . . 3 . . . . Feedback Events . | . . . . . . . Feedback Blocked . | . . . . . . . Robot Schematics Acquired . | . . . . . . . Robots Built . | . . . . . . . Authchips . | . . . . . . . Time . | . . . . . . . Total Robot Build Rating . | . . . . . . . Part Schematics Acquired . | . . . . . . . Parts Built . | . . . . . . . Authchips . | . . . . . . . Time . | . . . . . . . Total Part Build Rating . | . . . . . . . Parts Repaired . | . . . . . . . Time . | . . . . . . . Parts Recycled . | . . . . . . . Recycled Matter . | . . . . . . . Retrieved Matter . | . . . . . . . Retrieved Components . | . . . . . . . Parts Scanalyzed . | . . . . . . . Part Schematics Acquired . | . . . . . . . Parts Damaged . | . . . . . . . Bothacking | -11 -10 -9 -9 -9 -8 -8 ------------ Run | Scr Mat Mat Min Exi Min Mat Used RIF Installer . | . . . . . . . Robots Hacked . | . . . . . . . Non-combat . | . . . . . . . Combat . | . . . . . . . Robot Hacks Applied . | . . . . . . . Relay Couplers Released . | . . . . . . . Fabnet Peak Effective % . | . . . . . . . Robots Rewired . | . . . . . . . Allies Hacked . | . . . . . . . Hacks Repelled . | . . . . . . . Allies | -11 -10 -9 -9 -9 -8 -8 -------- Run | Scr Mat Mat Min Exi Min Mat Total Allies . | . . . . . . . Largest Group . | . . . . . . . Highest-Rated Group . | . . . . . . . Highest-Rated Ally . | . . . . . . . Total Orders . | . . . . . . . Ally Attacks . | . . . . . . . Total Damage . | . . . . . . . Kills . | . . . . . . . Allies Corrupted . | . . . . . . . Allies Melted . | . . . . . . . Intel | -11 -10 -9 -9 -9 -8 -8 ------- Run | Scr Mat Mat Min Exi Min Mat Robot Analysis Total . | . . . . . . . Derelict Logs Recovered 1 | . . . 1 . . . Drone Launches . | . . . . . . . Drone Recoveries . | . . . . . . . Exploration | -11 -10 -9 -9 -9 -8 -8 ------------- Run | Scr Mat Mat Min Exi Min Mat Turns Passed 1912 | 68 739 822 28 41 132 82 Spaces Moved 2053 | 53 454 1053 50 127 214 102 Core 6 | 6 . . . . . . Treads . | . . . . . . . Legs 531 | 47 454 30 . . . . Wheels . | . . . . . . . Hover . | . . . . . . . Flight 1516 | . . 1023 50 127 214 102 Fastest Speed 29 | 50 120 32 32 32 32 29 Average Speed 54 | 112 120 34 32 32 32 35 Slowest Speed 120 | 120 120 120 32 32 32 107 Overloaded Moves . | . . . . . . . Propulsion Burnouts . | . . . . . . . Robots Hopped 8 | . . 5 . . . 3 Cave-ins Triggered . | . . . . . . . Exploration Rate (%) 43 | 3 86 88 15 48 58 7 Regions Visited 6 Branch Regions 3 Pre-discovered Areas 1 | . . . . 1 . . Known Exits Taken 5 | . 1 1 1 1 1 . Unknown Exits Taken 1 | 1 . . . . . . Scrap Searched 2 | . . . 1 . 1 . Spaces Dug . | . . . . . . . Terrain Destroyed 20 | . 3 17 . . . . Melee . | . . . . . . . Projectile . | . . . . . . . AOE 20 | . 3 17 . . . . Terrain Rammed . | . . . . . . . Walls Destroyed . | . . . . . . . Machines Disabled . | . . . . . . . Actions | -11 -10 -9 -9 -9 -8 -8 --------- Run | Scr Mat Mat Min Exi Min Mat Total 2438 | 59 549 1287 55 126 238 124 Wait 39 | . 16 23 . . . . Move 2033 | 52 453 1044 49 126 213 96 Hop 6 | . . 3 . . . 3 Pick Up 8 | . 3 4 . . . 1 Fast Attach 23 | 6 6 4 . . . 7 Attach 3 | . . 2 . . . 1 Detach . | . . . . . . . Swap 7 | . . 5 . . . 2 Drop 19 | 1 4 9 . . . 5 Fire 51 | . 49 2 . . . . Melee 153 | . . 120 3 . 21 9 Ram . | . . . . . . . Kick 1 | . 1 . . . . . Crush . | . . . . . . . Escape Stasis . | . . . . . . . Rewire . | . . . . . . . Trap . | . . . . . . . Miscellaneous 95 | . 17 71 3 . 4 . Route ------- -11/Scrapyard -10/Materials (discovered 5 exits: *Mat x3 / [*Min x2]) -9/Materials (discovered 5 exits: *Mat x3 / *Min x2) -9/Mines -9/Exiles -8/Mines -8/Materials History --------- Turn | Location | Event 22 | -11/Scrapyard | Upgraded with Propulsion slot (x1) 22 | -11/Scrapyard | Upgraded with Utility slot (x1) 22 | -11/Scrapyard | Upgraded with Weapon slot (x1) 42 | -11/Scrapyard | Discovered new exit (range 16) 69 | -11/Scrapyard | Entered Materials 308 | -10/Materials | Build established: Mutant 431 | -10/Materials | Discovered new exit (range 10) 488 | -10/Materials | Discovered new exit (range 10) 560 | -10/Materials | Discovered new exit (range 7) 620 | -10/Materials | Discovered new exit (range 16) 790 | -10/Materials | Discovered new exit (range 16) 807 | -10/Materials | Identified exit to Materials 808 | -10/Materials | Entered another Materials area 810 | -9/Materials | Reached level 2 850 | -9/Materials | Reached level 3 893 | -9/Materials | Discovered new exit (range 4) 909 | -9/Materials | Upgraded with Propulsion slot (x1) 947 | -9/Materials | Core integrity fell below 50% 1127 | -9/Materials | Core integrity fell below 20% 1132 | -9/Materials | Reached level 4 1186 | -9/Materials | Identified exit to Materials 1186 | -9/Materials | Identified exit to Mines 1215 | -9/Materials | Build established: Sprinter 1330 | -9/Materials | Reached level 5 1549 | -9/Materials | Reached level 6 1608 | -9/Materials | First assault squad dispatched 1630 | -9/Materials | Entered Mines 1636 | -9/Mines | Met a Derelict bent on vengeance 1649 | -9/Mines | Identified exit to Exiles 1657 | -9/Mines | Deemed a non-threat by the Exiles lab entrance 1658 | -9/Mines | Entered Exiles 1666 | -9/Exiles | Met 8R-AWN 1672 | -9/Exiles | Met EX-HEX 1684 | -9/Exiles | Met EX-DEC 1686 | -9/Exiles | Learned location of Zion (-7) 1696 | -9/Exiles | Discovered new exit (range 11) 1699 | -9/Exiles | Identified exit to Mines 1699 | -9/Exiles | Entered Mines 1701 | -8/Mines | Reached level 7 1828 | -8/Mines | Discovered exit to Materials (range 9) 1831 | -8/Mines | Entered Materials 1833 | -8/Materials | Reached level 8 1862 | -8/Materials | Upgraded with Propulsion slot (x1) 1862 | -8/Materials | Upgraded with Utility slot (x1) 1862 | -8/Materials | Upgraded with Weapon slot (x1) 1878 | -8/Materials | Core integrity fell below 50% 1879 | -8/Materials | Reached level 9 1910 | -8/Materials | Core integrity fell below 20% 1913 | -8/Materials | Destroyed by H-61 Shepherd with Heavy Assault Cannon Last Messages --------------- 01887_ Surge Thruster fried. 01887_ Protomatter-33 decays. 01887_ K-01 Serf collects debris. 01887_ R-06 Scavenger collects Imp. Heat Sink. 01890_ K-01 Serf collects debris. 01890_ Acquired Imp. Flight Unit. 01892_ Acquired 26 matter. 01893_ Acquired 9 matter. 01893_ R-06 Scavenger collects Mace. 01894_ K-01 Serf collects debris. 01899_ H-61 Shepherd calls for reinforcements. 01899_ ALERT: Hostile activity reported, dispatching reinforcements to area. 01899_ Imp. Flight Unit blasted off. 01899_ Knocked back. 01907_ Acquired Imp. Flight Unit. 01909_ Imp. Flight Unit blasted off. 01909_ Knocked back. 01910_ Acquired Imp. Flight Unit. 01911_ Knocked back. Map ----- +----------------------------------------------------+ | ?????????????????????????????????????? | | ?????????????????????????????????????? | | ?????????????????????????????????????? | | ?????????????????????????????????????? | | ?????????????????????????????????????? | | ?????????????????????????????????????? | | ?????????????????????????????????????? | | ?????????????????????????????????????? | | ?????????????????????????????????????? | | ?????????????????????????????????????? | | ?????????????????????????????????????? | | ?????????????????????????????????????? | | ??????#######+##?????????????????????? | | ???#### ######????????????????? | | ???# ????????????????? | | ???# #?????????????????????? | | ???# #?????????????????????? | | ####+## #?????????????????????? | | #% = # #?????????????????????? | | #[%= !# % #?????????????????????? | | #=""" # % %#?????????????????????? | | #%"""%# #????????? ????????? | | # """ # ####### ???????? | | # + ???????? | | # # % ???????? | | # [ # H@ ???????? | | # # ####+####### ???????? | | # ! # #????????????? ????????? | | # /! # #???????????????#??????????? | | # # #??????????????????????????? | | ####### #??????????????????????????? | | ??????### #??????????????????????????? | | ????????# #??????????????????????????? | | ????????# #??????????????????????????? | | ????????# #??????????????????????????? | | ????????# #??????????????????????????? | | ????????# #??????????????????????????? | | ????????# #??????????????????????????? | | ????????# #??????????????????????????? | | ????????# ###????????????????????????? | | ?######?# #####????????????????????? | | ?# # !!#????????????????????? | | ?# # !!#????????????????????? | | ?#""" + ]]#????????????????????? | | ?#""" # ] ]#????????????????????? | | ?#""" # !!#????????????????????? | | ?# ?# !!#????????????????????? | | ?######?#########????????????????????? | | ?????????????????????????????????????? | | ?????????????????????????????????????? | +----------------------------------------------------+ Best States ------------- Heat Dissipation 35 Energy Generation 14 Energy Capacity 250 Matter Stores 300 Matter Capacity 300 Sight Range 18 Terrain Scan Density 10 Evasion (%) 64 Melee Accuracy 5 Defensive Hacking 10 Item Schematics ----------------- None Robot Schematics ------------------ None Fabricated ------------ Nothing Alien Tech Used ----------------- None Achievements -------------- None Challenges ------------ None RPGLIKE | -11 -10 -9 -9 -9 -8 -8 --------- Run | Scr Mat Mat Min Exi Min Mat Levels Raised 8 | . . 5 . . 1 2 XP Earned 15386 | 3000 1275 6558 853 200 1250 2250 XP Spent 8000 | 3000 . 2200 . . . 2800 Upgrades 15 | 6 . 5 . . . 4 Propulsion Slot 3 | 1 . 1 . . . 1 Utility Slot 2 | 1 . . . . . 1 Weapon Slot 2 | 1 . . . . . 1 Mass Support 1 | . . . . . . 1 Inventory Capacity 3 | 3 . . . . . . Melee Accuracy 4 | . . 4 . . . . Protomatter Created 733 | . 123 536 14 . 27 33 Integrity Restored 1916 | . 369 1424 42 . 81 . Core 1778 | . 369 1286 42 . 81 . Parts 138 | . . 138 . . . . Protomatter Decayed 79 | . . 46 . . . 33 Game ------ Seed GuidanceRelayDoublenader Manual? 0 Play Time 00:25:20 Cumulative 107.0 hours Start 2022.04.23 @ 17:23:24 End 2022.04.23 @ 17:47:04 Sessions 1 Manual Loads 0 Difficulty Rogue Special Mode Winter2019/RPGLIKE Game No. 63 Rogue 24 Adventurer 5 Explorer 34 Win Type - Total 19 Types 10/0/4/4/1/0/0/0/0 Lore% 70 Gallery% 67 Achievement% 74 Wizard Run 0 Options --------- ASCII 0 Keyboard 0 Movement Mouse Keybinds 0 Fullscreen 1 Font 18/Terminus Map View 76x50 Tactical HUD 1 Map Filters NONE Filters NONE Steam 1 RUN: d12e6dd8-6865-4b56-8474-96f2d9964711